Workbook

Sheet паспорт
A1: ПАТ "УКРТРАНСГАЗ" | G1: ПАСПОРТ ФІЗИКО-ХІМІЧНИХ ПОКАЗНИКІВ ПРИРОДНОГО ГАЗУ № 865
A2: Філія "УМГ "Черкаситрансгаз" | G2: переданого Кременчуцьким ЛВУМГ та прийнятого ПАТ "Полтавагаз"
A3: Кременчуцьке ЛВУМГ | G3: Маршрут № 865
A4: Вимірювальна хіміко-аналітична лабораторія
A5: Кременчуцького промислового майданчика
A6: Свідоцтво № 0612 КФ від 30.12.15р. чинне до 20.06.19р. | J6: по газопроводу "Союз" | V6: за період з | X6: 2017-03-01 | Z6: по | AA6: 2017-03-31
A8: Число місяця | B8: Компонентний склад, % мол. | N8: Фізико-хімічні показники газу обчислені на основі компонентного складу, 101,325 кПа | X8: Температура точки роси за вологою (Р = 3.92 МПа), °С | Y8: Температура точки роси за вуглеводнями, °С | Z8: Вміст сірководню, г/м3 | AA8: Вміст меркаптанової сірки, г/м3 | AB8: Вміст механічних домішок, г/м3
N9: Густина абсолютна, кг/м3,при 20 °С, | O9: Температура вимірювання/згоряння при 20/25°С
B10: метан, С1 | C10: етан, С2 | D10: пропан, С3 | E10: ізо-бутан, і-С4 | F10: н-бутан, н-С4 | G10: нео-пентан, нео-С5 | H10: ізо-пентан, і-С5 | I10: н-пентан, н-С5 | J10: гексани та вищі, С6+ | K10: кисень, О2 | L10: азот, N2 | M10: діоксид вуглецю, CО2 | O10: Теплота згоряння нижча | R10: Теплота згоряння вища | U10: Число Воббе вище
O11: ккал/м³ | P11: МДж/м³ | Q11: кВт⋅год/м³ | R11: ккал/м³ | S11: МДж/м³ | T11: кВт⋅год/м³ | U11: ккал/м³ | V11: МДж/м³ | W11: кВт⋅год/м³
A12: 1 | O12: =P12*238.8459 -> 8130.314436 | P12: 34.04 | Q12: =P12/3.6 -> 9.455555556 | R12: =S12*238.8459 -> 9016.432725 | S12: 37.75 | T12: =S12/3.6 -> 10.48611111 | AC12: =SUM(B12:M12)+$K$43+$N$43 -> 0
A13: 2 | O13: =P13*238.8459 -> 8130.314436 | P13: 34.04 | Q13: 9.455555556 | R13: =S13*238.8459 -> 9016.432725 | S13: 37.75 | T13: 10.48611111 | AC13: 0
A14: 3 | O14: 8130.314436 | P14: 34.04 | Q14: 9.455555556 | R14: 9016.432725 | S14: 37.75 | T14: 10.48611111 | AC14: 0 | AD14: =IF(AC14=100,"ОК"," ") -> 
A15: 4 | O15: 8130.314436 | P15: 34.04 | Q15: 9.455555556 | R15: 9016.432725 | S15: 37.75 | T15: 10.48611111 | AC15: 0 | AD15: =IF(AC15=100,"ОК"," ") -> 
A16: 5 | O16: 8130.314436 | P16: 34.04 | Q16: 9.455555556 | R16: 9016.432725 | S16: 37.75 | T16: 10.48611111 | AC16: 0
A17: 6 | B17: 96.4746 | C17: 1.9106 | D17: 0.5724 | E17: 0.0885 | F17: 0.0851 | G17: 0 | H17: 0.0157 | I17: 0.011 | J17: 0.0073 | K17: 0.001 | L17: 0.7051 | M17: 0.1287 | N17: 0.695 | O17: 8149.422108 | P17: 34.12 | Q17: 9.477777778 | R17: 9037.928856 | S17: 37.84 | T17: 10.51111111 | U17: 11 878 | V17: 49,82 | W17: =V17/3.6 -> 13.83888889 | X17: -22,8 | AC17: 100 | AD17: ОК
A18: 7 | O18: 8149.422108 | P18: 34.12 | Q18: 9.477777778 | R18: 9037.928856 | S18: 37.84 | T18: 10.51111111 | AC18: 0
A19: 8 | O19: 8149.422108 | P19: 34.12 | Q19: 9.477777778 | R19: 9037.928856 | S19: 37.84 | T19: 10.51111111 | AC19: 0
A20: 9 | O20: 8149.422108 | P20: 34.12 | Q20: 9.477777778 | R20: 9037.928856 | S20: 37.84 | T20: 10.51111111 | AC20: 0
A21: 10 | O21: 8149.422108 | P21: 34.12 | Q21: =P21/3.6 -> 9.477777778 | R21: 9037.928856 | S21: 37.84 | T21: =S21/3.6 -> 10.51111111 | AC21: 0
A22: 11 | O22: 8149.422108 | P22: 34.12 | Q22: 9.477777778 | R22: 9037.928856 | S22: 37.84 | T22: 10.51111111 | AC22: 0
A23: 12 | O23: 8149.422108 | P23: 34.12 | Q23: 9.477777778 | R23: 9037.928856 | S23: 37.84 | T23: 10.51111111 | AC23: 0
A24: 13 | B24: 96.3487 | C24: 1.9715 | D24: 0.5943 | E24: 0.0927 | F24: 0.09 | G24: 0 | H24: 0.0171 | I24: 0.0123 | J24: 0.0094 | K24: 0.0012 | L24: 0.7267 | M24: 0.1361 | N24: 0,6961 | O24: 8156.587485 | P24: 34,15 | Q24: 9.486111111 | R24: 9045.094233 | S24: 37.87 | T24: 10.51944444 | U24: 11 899 | V24: 49,82 | W24: 13.83888889 | X24: -23,1 | AC24: 100 | AD24: ОК
A25: 14 | O25: 8156.587485 | P25: 34.15 | Q25: 9.486111111 | R25: 9045.094233 | S25: 37.87 | T25: 10.51944444 | AC25: 0
A26: 15 | O26: 8156.587485 | P26: 34.15 | Q26: 9.486111111 | R26: 9045.094233 | S26: 37.87 | T26: 10.51944444 | AC26: 0
A27: 16 | O27: 8156.587485 | P27: 34.15 | Q27: =P27/3.6 -> 9.486111111 | R27: 9045.094233 | S27: 37.87 | T27: =S27/3.6 -> 10.51944444 | AC27: 0
A28: 17 | O28: 8156.587485 | P28: 34.15 | Q28: 9.486111111 | R28: 9045.094233 | S28: 37.87 | T28: 10.51944444 | AC28: 0
A29: 18 | O29: 8156.587485 | P29: 34.15 | Q29: 9.486111111 | R29: 9045.094233 | S29: 37.87 | T29: 10.51944444 | AC29: 0
A30: 19 | O30: 8156.587485 | P30: 34.15 | Q30: 9.486111111 | R30: 9045.094233 | S30: 37.87 | T30: 10.51944444 | AC30: 0
A31: 20 | B31: 96.1695 | C31: 2.1185 | D31: 0.6569 | E31: 0.1042 | F31: 0.1004 | G31: 0.0015 | H31: 0.0185 | I31: 0.0131 | J31: 0.0085 | K31: 0.0009 | L31: 0.67 | M31: 0.138 | N31: 0.6979 | O31: 8182.860534 | P31: 34.26 | Q31: 9.516666667 | R31: 9073.755741 | S31: 37.99 | T31: 10.55277778 | U31: 11 921 | V31: 49,91 | W31: 13.86388889 | X31: -23,0 | AC31: 100 | AD31: =IF(AC31=100,"ОК"," ") -> ОК
A32: 21 | O32: 8182.860534 | P32: 34.26 | Q32: 9.516666667 | R32: 9073.755741 | S32: 37.99 | T32: 10.55277778 | AC32: 0
A33: 22 | O33: 8182.860534 | P33: 34.26 | Q33: 9.516666667 | R33: 9073.755741 | S33: 37.99 | T33: 10.55277778 | AC33: 0
A34: 23 | O34: 8182.860534 | P34: 34.26 | Q34: =P34/3.6 -> 9.516666667 | R34: 9073.755741 | S34: 37.99 | T34: =S34/3.6 -> 10.55277778 | AC34: 0 | AD34: =IF(AC34=100,"ОК"," ") -> 
A35: 24 | O35: 8182.860534 | P35: 34.26 | Q35: 9.516666667 | R35: 9073.755741 | S35: 37.99 | T35: 10.55277778 | AC35: 0
A36: 25 | O36: 8182.860534 | P36: 34.26 | Q36: 9.516666667 | R36: 9073.755741 | S36: 37.99 | T36: 10.55277778 | AC36: 0
A37: 26 | O37: 8182.860534 | P37: 34.26 | Q37: 9.516666667 | R37: 9073.755741 | S37: 37.99 | T37: =S37/3.6 -> 10.55277778 | AC37: 0
A38: 27 | B38: 95.5558 | C38: 2.5299 | D38: 0.8005 | E38: 0.1277 | F38: 0.1241 | G38: 0.0016 | H38: 0.023 | I38: 0.0164 | J38: 0.0121 | K38: 0.001 | L38: 0.6276 | M38: 0.1803 | N38: 0.7034 | O38: 8237.795091 | P38: 34.49 | Q38: 9.580555556 | R38: 9133.467216 | S38: 38.24 | T38: 10.62222222 | U38: 11 952 | V38: 50,04 | W38: 13.9 | X38: -22,8 | Z38: 0 | AA38: 0 | AB38: відсутні | AC38: 100 | AD38: ОК
A39: 28 | O39: 8237.795091 | P39: 34.49 | Q39: 9.580555556 | R39: 9133.467216 | S39: 38.24 | T39: 10.62222222 | AC39: 0
A40: 29 | O40: 8237.795091 | P40: 34.49 | Q40: =P40/3.6 -> 9.580555556 | R40: 9133.467216 | S40: 38.24 | T40: =S40/3.6 -> 10.62222222 | AC40: 0
A41: 30 | O41: 8237.795091 | P41: 34.49 | Q41: =P41/3.6 -> 9.580555556 | R41: 9133.467216 | S41: 38.24 | T41: =S41/3.6 -> 10.62222222 | AC41: 0
A42: 31 | O42: 8237.795091 | P42: 34.49 | Q42: =P42/3.6 -> 9.580555556 | R42: 9133.467216 | S42: 38.24 | T42: =S42/3.6 -> 10.62222222 | AC42: 0
A43: Рівень одоризації відповідає чинним нормативним документам | O43: =8168 -> 8168 | P43: =AVERAGE(P25:P42) -> 34.28722222 | Q43: =AVERAGE(Q12:Q42) -> 9.501433692 | R43: =9058 -> 9058 | S43: =37.92 -> 37.92 | T43: =10.53 -> 10.53
H44: Середньозважене значення теплоти згоряння:
B46: Головний інженер Кременчуцького ЛВУМГ | N46: Грицик О. М. | Z46: 2017-04-03
C47: Підрозділу підприємства, якому підпорядкована лабораторія | M47: прізвище | V47: підпис | Z47: дата
B48: Інженер-лаборант ВХАЛ | N48: Голованова Ж. К. | Z48: 2017-04-03
C49: Лабораторія, де здійснювалось вимірювання газу | M49: прізвище | V49: підпис | Z49: дата
B50: Провідний економіст із збуту | N50: Кривулькін І. В. | Z50: 2017-04-03
C51: Підрозділу, відповідального за облік газу за маршрутом | M51: прізвище | V51: підпис | Z51: дата

Sheet додаток
A2: Додаток до Паспорту фізико-хімічних показників природного газу № 865
A4: Область | B4: ГРС, прямий споживач | C4: Cередньозважене значення вищої теплоти згоряння
C5: МДж/м³ | D5: ккал/м³ | E5: кВт*год./м³
A6: Полтавська область | B6: ГРС Коновалівка | C6: 37.92313905 | D6: 9057.786278 | E6: 10.53420529
A7: Середньозважене значення вищої теплоти згоряння по маршруту № 865 | C7: 37.92313905 | D7: 9057.786278 | E7: 10.53420529
A11: Головний інженер Кременчуцького ЛВУМГ | D11: Грицик О. М. | F11: 2017-04-03
A12: Підрозділу підприємства, якому підпорядкована лабораторія | D12: прізвище | E12: підпис | F12: дата
A13: Інженер-лаборант ВХАЛ | D13: Голованова Ж. К. | F13: 2017-04-03
A14: Лабораторія, де здійснювалось вимірювання газу | D14: прізвище | E14: підпис | F14: дата
A15: Провідний економіст із збуту | D15: Кривулькін І. В. | F15: 2017-04-03
A16: Підрозділу, відповідального за облік газу за маршрутом | D16: прізвище | E16: підпис | F16: дата

Sheet variablesList (hidden)
A1: 3 | B1: x:\gaysin | C1: 10, 11, 24, 25, 127, 128, 132, 180, 207, 215 | D1: x:\
B2: x:\Illinci
B3: x:\Talne
